Cogmind - Beta 15 @@@ ROGUE MODE // 2025.06.09 @ 04:46:40 Player: The Gourd Result: Destroyed by KS-EDW(R) with Subdweller Laser Performance ------------- Evolutions (0) 0 Regions Visited (3) 600 Robots Destroyed (38) 190 Value Destroyed (922) 922 Prototype IDs (11) 220 Alien Tech Used (0) 0 Bonus (100) 100 TOTAL SCORE: 2032 Bonus ------- Follower Combat Kills 100 Cogmind --------- Core Integrity 0/250 Matter 42/300 Energy 188/200 System Corruption 0% Temperature Cool (6) Movement Rolling (155) Ox5 Location -10/Subcaves Parts ------- > --- POWER (1) -------- Subdweller Power Source > --- PROPULSION (2) --- Light Treads Wheel > --- UTILITY (2) ------ High-capacity Storage Unit Subdweller Optics > --- WEAPON (2) ------- Battle Rifle Battle Cannon > --- INVENTORY (20) --- Subdweller Power Source Light Treads Spiked Treads Subdweller Monowheel Subdweller Monowheel Subdweller Monowheel Flightbrick Scrap Shield Makeshift Hacking Suite Subdweller Laser Subdweller Beam Cannon Rocket Launcher Subdweller Shrapnel Launcher Flail Peak State ------------ > --- POWER ------------ Subdweller Power Source > --- PROPULSION ------- Light Treads Wheel > --- UTILITY ---------- High-capacity Storage Unit Subdweller Optics > --- WEAPON ----------- Subdweller Shrapnel Launcher Flail > --- INVENTORY -------- Subdweller Power Source Light Treads Spiked Treads Subdweller Monowheel Subdweller Monowheel Subdweller Monowheel Flightbrick Scrap Shield Makeshift Hacking Suite Subdweller Laser Subdweller Beam Cannon Battle Rifle Battle Cannon Rocket Launcher [Rating: 17] Favorites ----------- Power Ion Engine Engine Ion Engine Propulsion Light Treads Treads Light Treads Wheel Wheel Utility High-capacity Storage Unit Device Disposable Heat Sink Storage High-capacity Storage Unit Processor Targeting Computer Weapon Improved Light Cannon Ballistic Gun Light Assault Rifle Ballistic Cannon Improved Light Cannon Launcher Subdweller Shrapnel Launcher Impact Weapon Flail Build | -11 -10 -10 -10 ------- Run | Yrd Mat Min Sub Slots Evolved . | . . . . Power . | . . . . Propulsion . | . . . . Utility . | . . . . Weapon . | . . . . Parts Attached 28 | 7 5 . 16 Power 4 | 1 . . 3 Engine 4 | 1 . . 3 Core . | . . . . Reactor . | . . . . Propulsion 5 | 2 . . 3 Treads 4 | 2 . . 2 Leg . | . . . . Wheel 1 | . . . 1 Hover . | . . . . Flight . | . . . . Utility 7 | 2 3 . 2 Device 3 | 1 . . 2 Storage 3 | 1 2 . . Processor 1 | . 1 . . Hackware . | . . . . Protection . | . . . . Artifact . | . . . . Weapon 12 | 2 2 . 8 Energy Gun . | . . . . Energy Cannon . | . . . . Ballistic Gun 3 | 2 . . 1 Ballistic Cannon 6 | . 2 . 4 Launcher 2 | . . . 2 Special Weapon . | . . . . Impact Weapon 1 | . . . 1 Slashing Weapon . | . . . . Piercing Weapon . | . . . . Special Melee Weapon . | . . . . Unidentified Prototypes . | . . . . Parts Lost 12 | . . . 12 Power 3 | . . . 3 Propulsion 3 | . . . 3 Utility 2 | . . . 2 Weapon 4 | . . . 4 Highest Loss Streak 8 | . . . 8 To Critical Strikes . | . . . . Average Backups 11 | 3 9 13 12 Power 1 | . 1 2 1 Propulsion 2 | 1 2 3 2 Utility 2 | . 1 2 3 Weapon 4 | . 4 5 4 Tool/Special . | . . . . Unused Backups 14 | . 3 . 11 Power 1 | . . . 1 Propulsion 7 | . 1 . 6 Utility 2 | . . . 2 Weapon 4 | . 2 . 2 Tool/Special . | . . . . Average Slot Usage (%) 91 | . 99 100 83 Engine 11 | . 14 14 9 Treads 23 | . 27 28 18 Wheel 3 | . . . 6 Device 2 | . 1 . 3 Storage 14 | . 14 14 14 Processor 7 | . 12 14 2 Ballistic Cannon 21 | . 27 28 15 Launcher 1 | . . . 2 Impact Weapon 4 | . . . 8 Peak Build Rating 17 | 7 10 10 17 Average Rating 9 | 5 9 10 10 On Entrance 6 | . 7 10 10 Naked Turns . | . . . . Heaviest Build 55 | 13 53 53 55 Greatest Support 40 | 40 40 40 40 Greatest Overweight (x) 5 | . 5 1 5 Average Overweight (x) 2 | . . 1 3 Largest Inventory Capacity 20 | 8 20 20 20 Average Capacity 18 | 7 13 20 20 Most Carried 20 | 5 12 14 20 Average Carried 12 | 3 9 13 13 Final Capacity 20 | 8 20 20 20 Final Carried 18 | 5 12 14 18 Class Distribution -------------------- 100% | Mutant Dominant Class ---------------- Mutant | -10/Materials Mutant | -10/Mines Mutant | -10/Subcaves Resources | -11 -10 -10 -10 ----------- Run | Yrd Mat Min Sub Matter Collected 1386 | 310 228 284 564 Remotely . | . . . . Salvage Created 774 | 192 229 150 203 Parts 49 | 11 8 11 19 Haulers Intercepted 1 | . 1 . . Recyclers Shooed . | . . . . Parts Field Recycled . | . . . . Retrieved Matter . | . . . . Parts Self-Destructed 11 | . . . 11 Prevented . | . . . . Kills | -11 -10 -10 -10 ------- Run | Yrd Mat Min Sub Combat Hostiles Destroyed 27 | . 4 4 19 Cannons 14 | . 4 4 6 AOE 13 | . . . 13 Classes Destroyed 10 | 2 4 1 3 Worker 1 | . . 1 . Tunneler 5 | 4 . 1 . Hauler 1 | . 1 . . Recycler 2 | 1 1 . . Operator 1 | . 1 . . Watcher 1 | . 1 . . Swarmer 7 | . . . 7 Grunt 8 | . 4 4 . Sentry 1 | . . . 1 Subdweller 11 | . . . 11 Best Kill Streak 4 | 4 2 2 4 Combat Bots Only 4 | . 2 2 4 Max Kills in Single Turn 2 | 1 1 1 2 Gunslinging . | . . . . Exploded 2 | . . . 2 Melee . | . . . . Uniques/NPCs Destroyed . | . . . . Combat | -11 -10 -10 -10 -------- Run | Yrd Mat Min Sub Hostile Shots Fired 125 | . 11 9 105 Missed 32 | . 4 . 28 Hits 93 | . 7 9 77 Projectile 93 | . 7 9 77 AOE 1 | . . . 1 Critical Strikes 2 | . . . 2 Damage Taken 1667 | . 82 102 1483 Core 264 | . . 12 252 Absorbed by Shields . | . . . . Core Remaining (%) 100 | 100 . . . Volleys Fired 112 | 20 16 12 64 Largest 2 | 2 2 2 2 Hottest 66 | 40 66 66 66 Shots Fired 199 | 40 32 24 103 Gun 42 | 40 . . 2 Cannon 140 | . 32 24 84 Launcher 17 | . . . 17 Special . | . . . . Kinetic 196 | 40 32 24 100 Thermal . | . . . . Explosive 3 | . . . 3 Electromagnetic . | . . . . Robot Hit Streak 15 | 7 10 15 13 Robot Miss Streak 4 | 2 2 2 4 Penetration Max . | . . . . Secondary Targets . | . . . . Shots Hit Robots 134 | 29 21 15 69 Core Hits 55 | 11 9 6 29 Critical Kills . | . . . . Critical Parts Destroyed . | . . . . Critical Strikes 4 | . 1 1 2 Blast 4 | . 1 1 2 Melee Attacks 26 | . . . 26 Impact 26 | . . . 26 Slashing . | . . . . Piercing . | . . . . Sneak Attacks . | . . . . Combat Hostiles . | . . . . Follow-up Attacks . | . . . . Damage Inflicted 3380 | 227 432 313 2408 Guns 247 | 227 . . 20 Cannons 1934 | . 432 313 1189 Explosions 1199 | . . . 1199 Melee . | . . . . Ramming . | . . . . Kinetic 3066 | 227 432 313 2094 Thermal . | . . . . Explosive 314 | . . . 314 Electromagnetic . | . . . . Impact . | . . . . Slashing . | . . . . Piercing . | . . . . Highest Corruption . | . . . . Average Corruption . | . . . . Corruption Purged . | . . . . Corruption Blocked . | . . . . Overload Shots . | . . . . Overflow Damage 50 | . 18 3 29 Projectiles 21 | . 18 3 . Explosions 29 | . . . 29 Melee . | . . . . Knockbacks 20 | . 5 3 12 Impact . | . . . . Kinetic 19 | . 5 3 11 Secondary 1 | . . . 1 Self-Inflicted Damage 55 | . . . 55 Shots 2 | . . . 2 Rammed . | . . . . Targets Rammed . | . . . . Kicked . | . . . . Crushed . | . . . . Highest Temperature 428 | . 36 42 428 Average Temperature 64 | . 11 14 218 Received Heat Transfer 1020 | . 45 54 921 Effects 1 | . . . 1 Shutdowns 1 | . . . 1 Siege Activations . | . . . . Martial Activations . | . . . . Shielding Activations . | . . . . Robots Disrupted . | . . . . Combat Hostiles . | . . . . Robots Corrupted . | . . . . Combat Hostiles . | . . . . Parts Fried . | . . . . Impact Corruptions . | . . . . Robots Melted . | . . . . Combat Hostiles . | . . . . Parts Melted . | . . . . Heat Transferred . | . . . . Parts Sabotaged . | . . . . Parts Stolen . | . . . . Parts Stripped . | . . . . Power Chain Reactions . | . . . . Alert | -11 -10 -10 -10 ------- Run | Yrd Mat Min Sub Maximum Alert Level . | . . . . Low Security (%) 100 | 100 100 100 . Level 1 . | . . . . Level 2 . | . . . . Level 3 . | . . . . Level 4 . | . . . . Level 5 . | . . . . High Security . | . . . . Max Security . | . . . . Peak Influence 123 | 10 55 123 . Initial 4 | . 3 4 . Average 15 | . 10 22 . Influence Increases 586 | 25 152 179 230 Destroy 0b10 Robot/C 400 | . 80 160 160 Destroy 0b10 Robot/NC 55 | 25 20 10 . Destroy Leader 34 | . 24 . 10 Allied During Kill 8 | . . 8 . Successful Hack 10 | . 10 . . Destroy Structure 4 | . 3 1 . Lose Combat Pursuer 75 | . 15 . 60 Influence Decreases 586 | 20 146 103 317 Entered New Map 55 | . 2 7 46 Time Decay 471 | 20 144 96 211 Lost Part 40 | . . . 40 Lost Ally 20 | . . . 20 Squads Dispatched 3 | . 3 . . Investigation 1 | . 1 . . Extermination . | . . . . Reinforcement 2 | . 2 . . Assault . | . . . . Garrison . | . . . . Intercept . | . . . . Searches Triggered . | . . . . Construction Impeded . | . . . . Haulers Reinforced . | . . . . Active Scanning Responses . | . . . . Cargo Convoy Interrupts . | . . . . Stealth | -11 -10 -10 -10 --------- Run | Yrd Mat Min Sub Distress Signals . | . . . . Communications Jammed . | . . . . Distress Signals . | . . . . Times Spotted 41 | . 10 9 22 Peak Tracking Total 6 | . 2 3 6 Tactical Retreats 2 | . 1 . 1 Traps | -11 -10 -10 -10 ------- Run | Yrd Mat Min Sub Traps Triggered 2 | . 2 . . Indirectly . | . . . . Trap Hack Attempts . | . . . . Triggered . | . . . . Disarmed . | . . . . Reprogrammed . | . . . . Reused . | . . . . Traps Extracted . | . . . . Installed . | . . . . Triggered . | . . . . Machines | -11 -10 -10 -10 ---------- Run | Yrd Mat Min Sub Machines Disabled 1 | . . . 1 Max in Single Turn 1 | . . . 1 Machines Repaired . | . . . . Machines Dismantled . | . . . . Machines Sabotaged . | . . . . Overloaded Fab Kills . | . . . . Hacking | -11 -10 -10 -10 --------- Run | Yrd Mat Min Sub Machines Accessed 3 | . 2 . 1 Terminals 2 | . 2 . . Fabricators . | . . . . Repair Stations . | . . . . Recycling Units . | . . . . Scanalyzers . | . . . . Garrison Access . | . . . . Total Hacks 19 | . 10 . 9 Successful 14 | . 5 . 9 Failed 5 | . 5 . . Catastrophic 1 | . 1 . . Database Lockouts . | . . . . Manual 10 | . 10 . . Terminals 10 | . 10 . . Fabricators . | . . . . Repair Stations . | . . . . Recycling Units . | . . . . Scanalyzers . | . . . . Garrison Access . | . . . . Terminal Hacks 9 | . . . 9 Record 8 | . . . 8 Proto ID Catalog 1 | . . . 1 Fabricator Hacks . | . . . . Repair Station Hacks . | . . . . Recycling Unit Hacks . | . . . . Scanalyzer . | . . . . Garrison Access Hacks . | . . . . Unauthorized Hacks 5 | . 5 . . Terminals 5 | . 5 . . Botnet 2 | . 2 . . Operators 1 | . 1 . . Skim 2 | . 2 . . Fabricators . | . . . . Repair Stations . | . . . . Recycling Units . | . . . . Scanalyzers . | . . . . Garrison Access . | . . . . Data Cores Recovered 1 | . 1 . . Used 1 | . 1 . . Hacking Detections 2 | . 2 . . Full Trace Events 1 | . 1 . . Feedback Events . | . . . . Feedback Blocked . | . . . . Robot Schematics Acquired . | . . . . Robots Built . | . . . . Authchips . | . . . . Time . | . . . . Total Robot Build Rating . | . . . . Part Schematics Acquired . | . . . . Parts Built . | . . . . Authchips . | . . . . Time . | . . . . Total Part Build Rating . | . . . . Parts Repaired . | . . . . Time . | . . . . Parts Recycled . | . . . . Recycled Matter . | . . . . Retrieved Matter . | . . . . Retrieved Components . | . . . . Parts Scanalyzed . | . . . . Part Schematics Acquired . | . . . . Parts Damaged . | . . . . Bothacking | -11 -10 -10 -10 ------------ Run | Yrd Mat Min Sub Used RIF Installer . | . . . . Robots Hacked . | . . . . Non-combat . | . . . . Combat . | . . . . Robot Hacks Applied . | . . . . Relay Couplers Released . | . . . . Fabnet Peak Effective % . | . . . . Robots Rewired . | . . . . Allies Hacked . | . . . . Hacks Repelled . | . . . . Allies | -11 -10 -10 -10 -------- Run | Yrd Mat Min Sub Total Allies 2 | . . 2 . Largest Group 2 | . . 2 1 Highest-Rated Group 44 | . . 44 31 Highest-Rated Ally 31 | . . 31 31 Total Orders . | . . . . Ally Attacks 16 | . . 14 2 Total Damage 272 | . . 272 . Kills 6 | . . 6 . Allies Corrupted . | . . . . Allies Melted . | . . . . Intel | -11 -10 -10 -10 ------- Run | Yrd Mat Min Sub Active Infowar (turns) 189 | 109 64 . 16 Optics 16 | . . . 16 Seismic 173 | 109 64 . . Robot Analysis Total . | . . . . Derelict Logs Recovered 1 | . . 1 . Drone Launches . | . . . . Drone Recoveries . | . . . . Exploration | -11 -10 -10 -10 ------------- Run | Yrd Mat Min Sub Turns Passed 4098 | 239 807 1069 1983 Spaces Moved 1687 | 110 361 316 900 Core 6 | 5 1 . . Treads 1096 | 105 360 316 315 Legs . | . . . . Wheels 585 | . . . 585 Hover . | . . . . Flight . | . . . . Fastest Speed 50 | 50 160 240 140 Average Speed 194 | 155 189 240 186 Slowest Speed 320 | 160 300 240 320 Overloaded Moves . | . . . . Propulsion Burnouts . | . . . . Robots Hopped . | . . . . Potential Cave-ins . | . . . . Cave-ins Triggered . | . . . . Exploration Rate (%) 39 | 7 47 48 55 Regions Visited 3 Branch Regions 2 Pre-discovered Areas 1 | . . 1 . Known Exits Taken . | . . . . Unknown Exits Taken 3 | 1 1 1 . Scrap Searched 6 | . . 1 5 Spaces Dug 16 | . . . 16 Terrain Destroyed 208 | . . 1 207 Melee . | . . . . Projectile 1 | . . 1 . AOE 207 | . . . 207 Terrain Rammed . | . . . . Walls Destroyed . | . . . . Machines Disabled . | . . . . Actions | -11 -10 -10 -10 --------- Run | Yrd Mat Min Sub Total 2267 | 143 452 604 1068 Wait 357 | 2 48 275 32 Move 1684 | 109 360 315 900 Hop . | . . . . Pick Up 34 | 5 9 2 18 Fast Attach 15 | 7 8 . . Attach 12 | . . . 12 Detach 2 | . 2 . . Swap 11 | . 2 . 9 Drop 14 | . 7 . 7 Fire 112 | 20 16 12 64 Melee 26 | . . . 26 Ram . | . . . . Kick . | . . . . Crush . | . . . . Escape Stasis . | . . . . Rewire . | . . . . Trap . | . . . . Miscellaneous . | . . . . Route ------- -11/Scrapyard -10/Materials (discovered 2 exits: [*Mat] / [*Min]) -10/Mines -10/Subcaves (discovered 2 exits: [*Mat x2]) History --------- Turn | Location | Event 15 | -11/Scrapyard | Discovered new exit (range 16) 240 | -11/Scrapyard | Entered Materials 329 | -10/Materials | Build established: Mutant 638 | -10/Materials | Discovered new exit (range 5) 732 | -10/Materials | Discovered new exit (range 13) 1047 | -10/Materials | Entered Mines 1093 | -10/Mines | Received a Rocket Launcher from a helpful Derelict 1571 | -10/Mines | Excavation squad dispatched 1571 | -10/Mines | A large section of the Mines collapsed 1821 | -10/Mines | Excavation squad dispatched 2071 | -10/Mines | Excavation squad dispatched 2099 | -10/Mines | Discovered new exit (range 8) 2116 | -10/Mines | Entered Subcaves 2116 | -10/Subcaves | Accompanied by 1 ally 2117 | -10/Subcaves | Approached by a straggling Scientist 2121 | -10/Subcaves | Led the pair of lost Derelicts to an unsafe place 2451 | -10/Subcaves | Core integrity fell below 50% 2497 | -10/Subcaves | Lost 8 parts (2p2n1u3w) 2774 | -10/Subcaves | A swath of the cavern ceiling suddenly collapsed 2863 | -10/Subcaves | Discovered new exit (range 14) 3132 | -10/Subcaves | Disturbed a concealed Subdweller 3458 | -10/Subcaves | Visited 4L-MR0's lab 3475 | -10/Subcaves | Found Flightbrick 3743 | -10/Subcaves | Discovered new exit (range 14) 3849 | -10/Subcaves | Shifting Twisted Machinery released Spk. Treads 3855 | -10/Subcaves | Shifting Twisted Machinery released Sub. Beam Cannon 3861 | -10/Subcaves | Shifting Twisted Machinery released Sub. Monowheel 4058 | -10/Subcaves | Shifting Twisted Machinery released Scrap Shield 4071 | -10/Subcaves | Ambushed by Subdweller buried in earth 4073 | -10/Subcaves | Ambushed by Subdweller buried in earth 4075 | -10/Subcaves | Core integrity fell below 20% 4077 | -10/Subcaves | Ambushed by Subdweller buried in earth 4085 | -10/Subcaves | Ambushed by Subdweller buried in earth 4099 | -10/Subcaves | Destroyed by KS-EDW(R) with Subdweller Laser Last Messages --------------- 04062_ Dropped Lgt. Cannon. 04063_ Acquired Scrap Shield. 04072_ VN-42V(R): "ARGHSUB!" 04073_ OJ-ERX(R) destroyed. 04074_ 5I-75E(R): "HIDIE!" 04078_ P1-34C(R): "ARGHSUB!" 04079_ P1-34C(R) destroyed. 04080_ 5I-75E(R) affixes Scrap Shield Fragment to Scrap Shield. 04081_ 5I-75E(R) destroyed. 04081_ Lgt. Ion Engine destroyed. 04081_ Destroyed Lgt. Ion Engine. 04081_ Disposable Heat Sink destroyed. 04081_ Destroyed Disposable Heat Sink. 04086_ KS-EDW(R): "ARGHSUB!" 04087_ Destroyed Scrap Shield. 04093_ VN-42V(R) destroyed. 04096_ KS-EDW(R) affixes Scrap Shield Fragment to Scrap Shield. 04098_ KS-EDW(R) knocked back. Map ----- +----------------------------------------------------+ | ????????????????????????????? % "" " ##?? | | ????????????????????????????? " "#??? | | ?????????????????????????????# ## ## " "##??? | | ????????????????????????????? ##### " "#???? | | ?????????????????????????????# #??#% "#???? | | ????????????????????????###?## #### # ##???? | | ?????????????????????#### ### %## # ## ##????? | | ?????????????????????# # # #####?? | | ????????????????????## ## #?? | | ?????????###?####?###" "# # ### | | ????????##"### ### # ###### ## | | ????????#" """#??#%"## ### ### | | ##?????## """ ## #""##??## ######?## ##?### # | | ###?### " ##""###### "#????# ##???????###????#### | | # ### "" #####????#"""#??? #??????????????????? | | # ### """"""######??##"##??? ##?????????????????? | | "" """ "" #####"####?# ??????????????????? | | " " """ ## """ ## #?????????????????# | | ### # !!""""""""""" # #?????????????????# | | ###?######## [ " """"" #??????????????????# | | ???????????## ### # """ "#?#???????????????????? | | ????????????########## ] ###?????????????????????? | | ?????????????##### ### " ##?????????????????????? | | ????????????## ;;#?????????????????????? | | ????????????# ;#?????????????????????? | | ????????????# ! @;#?????????????????????? | | ????????????# && % ;#?????????????????????? | | ????????????# #?????????????????????? | | ??????????# R #?????????????????????? | | ?????????# ?????????????????????? | | ?????????## ????????????????????? | | ?????????# & ????????????????????? | | ?????????# ;# ???????????????????? | | ?????????## ; # #??????????????????? | | ??????????# ###"";; #??????????????????? | | ??????????# ??#"" # #??????????????????? | | ??????????## ???##" ? ##??????????????????? | | ???????????#### #????#" #? ???????????????????? | | ??????????????####??????"#?? #???????????????????? | | ????????????????????????"????#???????????????????? | | ?????????????????????????????????????????????????? | | ?????????????????????????????????????????????????? | | ?????????????????????????????????????????????????? | | ???????????????????????????????????????????????### | | ??????????????????????????????????????????????## | | ??????????????????????????????????????????????# | | ?????????????????????????????????????????????## | | ?????????????????????????????????????????????# | | ????????????????????????????????????????????# | | ????????????????????????????????????????????## # | +----------------------------------------------------+ Best States ------------- Heat Dissipation 25 Coolant Potential 50 Energy Generation 15 Energy Capacity 250 Matter Stores 300 Matter Capacity 300 Sight Range 21 Terrain Scan Density 10 Evasion (%) 40 Targeting Accuracy 5 Recoil Reduction 2 Item Schematics ----------------- None Robot Schematics ------------------ None Fabricated ------------ Nothing Repaired ---------- Nothing Alien Tech Used ----------------- None Achievements -------------- None Challenges ------------ None Game ------ Seed ResetComponentBox Manual? 0 Play Time 00:20:34 Cumulative 133.0 hours Start 2025.06.09 @ 04:27:51 End 2025.06.09 @ 04:46:40 Sessions 1 Manual Loads 0 Difficulty Rogue Special Mode None Game No. 85 Rogue 85 Adventurer 0 Explorer 0 Win Type - Total 2 Types 2/0/0/0/0/0/0/0/0/0 Lore% 36 Gallery% 48 Achievement% 51 Wizard Run 0 Options --------- Layout 1 ASCII 0 Keyboard 1 Movement Vi Keybinds 1 Fullscreen 1 Font 32/SmallcapsGlow Map View 50x35 Zoom Use 0% Tactical HUD 1 Map Filters NONE Filters NONE Steam 1 RUN: 2a782c7b-c36f-4431-986c-71d3fa7051df